fUSD/lending_fUSD_20260516
["ID","MTS","AMOUNT","RATE_DAILY","PERIOD"]
[422354373,1778863862000,-1067.17753307,0.00037033,2]
[422354368,1778863862000,-492.80891757,0.00037033,2]
[422354372,1778863862000,-527.86311606,0.00037033,2]
[422354370,1778863862000,-604.60191468,0.00037033,2]
[422354371,1778863862000,-367.80164888,0.00037033,2]
[422354369,1778863862000,-300.10975184,0.00037033,2]
[422354367,1778863862000,-300.000001,0.00037033,2]
[422354366,1778863862000,-300.0,0.00037033,2]
[422354374,1778863862000,-893.62065607,0.00037033,2]
[422354383,1778863862000,-1912.89907411,0.00037033,2]
[422354377,1778863862000,-418.15336803,0.00037033,2]
[422354382,1778863862000,-949.22762307,0.00037033,2]
[422354398,1778863862000,-1145.6543398,0.00014679,2]
[422354396,1778863862000,-1827.00861842,0.00014679,2]
[422354397,1778863862000,-9221.39591376,0.00014679,2]
[422354395,1778863862000,-28.72215512,0.00037033,2]
[422354394,1778863862000,-463.9634187,0.00037033,2]
[422354393,1778863862000,-588.93738873,0.00037033,2]
[422354388,1778863862000,-309.66601163,0.00037033,2]
[422354392,1778863862000,-310.98128614,0.00037033,2]
[422354386,1778863862000,-300.0,0.00037033,2]
[422354387,1778863862000,-1147.46211523,0.00037033,2]
[422354391,1778863862000,-544.0245722,0.00037033,2]
[422354385,1778863862000,-527.01885803,0.00037033,2]
[422354390,1778863862000,-300.0,0.00037033,2]
[422354384,1778863862000,-344.06433589,0.00037033,2]
[422354389,1778863862000,-864.66747955,0.00037033,2]
[422354381,1778863862000,-300.0,0.00037033,2]
[422354399,1778864453000,90000.0,0.00030137,120]
[422354400,1778864735000,12297.3525175,0.0001,2]
[422354401,1778864740000,824.65823587,9.04e-05,2]
[422354402,1778864805000,-261.00898433,0.00013188,2]
[422354403,1778864844000,500.0,0.00028163,120]
[422354404,1778864844000,500.0,0.00029652,120]
[422354407,1778864882000,514.57,0.00012572,2]
[422354411,1778864901000,-590.259,0.00013326,2]
[422354408,1778864901000,-1738.99101567,0.00013188,2]
[422354410,1778864901000,-1200.0,0.00013325,2]
[422354409,1778864901000,-170.01,0.00013202,2]
[422354412,1778864916000,-6300.73998433,0.00013326,2]
[422354413,1778864924000,-10000.0,0.00013326,2]
[422354414,1778864937000,160.17,0.0001259,2]
[422354415,1778864938000,405.27957554,0.00030136,120]
[422354424,1778865032000,-76802.51486224,0.00013453,2]
[422354425,1778865032000,-78219.79738057,0.00013453,2]
[422354423,1778865032000,-1200.0,0.00013325,2]
[422354462,1778865038000,-150.0,0.00013488,2]
[422354454,1778865038000,-500.0,0.00013452,2]
[422354456,1778865038000,-500.0,0.00013452,2]
[422354457,1778865038000,-1008224.52155719,0.00013453,2]
[422354458,1778865038000,-150.0,0.00013488,2]
[422354460,1778865038000,-150.0,0.00013488,2]
[422354463,1778865038000,-280.65180992,0.00013488,2]
[422354469,1778865038000,-32106.81918876,0.000135,2]
[422354464,1778865038000,-770.51771859,0.0001349,2]
[422354461,1778865038000,-150.0,0.00013488,2]
[422354465,1778865038000,-649.50098706,0.000135,2]
[422354467,1778865038000,-1449.43501779,0.000135,2]
[422354466,1778865038000,-2549.93685383,0.000135,2]
[422354455,1778865038000,-500.0,0.00013452,2]
[422354468,1778865038000,-5176.83415156,0.000135,2]
[422354459,1778865038000,-150.0,0.00013488,2]
[422354452,1778865038000,-366.27153863,0.00013452,2]
[422354447,1778865038000,-500.0,0.00013452,2]
[422354449,1778865038000,-500.0,0.00013452,2]
[422354434,1778865038000,-500.0,0.00013452,2]
[422354436,1778865038000,-500.0,0.00013452,2]
[422354435,1778865038000,-307.2256278,0.00013452,2]
[422354438,1778865038000,-500.0,0.00013452,2]
[422354437,1778865038000,-464.39793361,0.00013452,2]
[422354439,1778865038000,-500.0,0.00013452,2]
[422354440,1778865038000,-500.0,0.00013452,2]
[422354453,1778865038000,-500.0,0.00013452,2]
[422354441,1778865038000,-500.0,0.00013452,2]
[422354443,1778865038000,-500.0,0.00013452,2]
[422354445,1778865038000,-500.0,0.00013452,2]
[422354474,1778865038000,-811.77175828,0.00013529,2]
[422354444,1778865038000,-500.0,0.00013452,2]
[422354446,1778865038000,-500.0,0.00013452,2]
[422354450,1778865038000,-500.0,0.00013452,2]
[422354451,1778865038000,-500.0,0.00013452,2]
[422354442,1778865038000,-500.0,0.00013452,2]
[422354473,1778865038000,-150.0,0.00013526,2]
[422354448,1778865038000,-500.0,0.00013452,2]
[422354470,1778865038000,-280.65180992,0.00013503,2]
[422354499,1778865038000,-615.14537187,0.00013597,2]
[422354493,1778865038000,-294.4971809,0.00013597,2]
[422354498,1778865038000,-540.64438934,0.00013597,2]
[422354494,1778865038000,-500.0,0.00013597,2]
[422354495,1778865038000,-500.0,0.00013597,2]
[422354500,1778865038000,-1829299.6328,0.00013598,2]
[422354502,1778865038000,-150.0,0.00013603,2]
[422354497,1778865038000,-500.0,0.00013597,2]
[422354504,1778865038000,-280.65180992,0.00013624,2]
[422354505,1778865038000,-150.0,0.00013638,2]
[422354501,1778865038000,-150.0,0.000136,2]
[422354510,1778865038000,-5176.83415148,0.00013656,2]
[422354506,1778865038000,-150.0,0.00013638,2]
[422354507,1778865038000,-280.65180992,0.00013639,2]
[422354509,1778865038000,-280.65180992,0.00013654,2]
[422354472,1778865038000,-150.0,0.00013525,2]
[422354508,1778865038000,-150.0,0.00013641,2]
[422354496,1778865038000,-500.0,0.00013597,2]
[422354503,1778865038000,-280.65180992,0.00013609,2]
[422354489,1778865038000,-150.0,0.00013597,2]
[422354471,1778865038000,-280.65180992,0.00013518,2]
[422354492,1778865038000,-500.0,0.00013597,2]
[422354476,1778865038000,-150.0,0.00013538,2]
[422354475,1778865038000,-280.65180992,0.00013533,2]
[422354478,1778865038000,-150.0,0.00013563,2]
[422354480,1778865038000,-150.0,0.00013565,2]
[422354479,1778865038000,-280.65180992,0.00013563,2]
[422354484,1778865038000,-280.65180992,0.00013594,2]
[422354481,1778865038000,-280.65180992,0.00013578,2]
[422354477,1778865038000,-280.65180992,0.00013548,2]
[422354482,1778865038000,-150.0,0.00013581,2]
[422354483,1778865038000,-150.0,0.00013588,2]
[422354491,1778865038000,-172.55707789,0.00013597,2]
[422354485,1778865038000,-150.0,0.00013595,2]
[422354488,1778865038000,-1096.81108638,0.00013597,3]
[422354487,1778865038000,-500.0,0.00013597,2]
[422354486,1778865038000,-150.0,0.00013596,2]
[422354490,1778865038000,-500.0,0.00013597,2]
[422354551,1778865039000,-233.99417586,0.00013698,2]
[422354550,1778865039000,-500.0,0.00013698,2]
[422354548,1778865039000,-500.0,0.00013698,2]
[422354558,1778865039000,-500.0,0.00013698,2]
[422354549,1778865039000,-500.0,0.00013698,2]
[422354545,1778865039000,-502.56578458,0.00013698,2]
[422354546,1778865039000,-500.0,0.00013698,2]
[422354541,1778865039000,-500.0,0.00013698,2]
[422354542,1778865039000,-500.0,0.00013698,2]
[422354552,1778865039000,-500.0,0.00013698,2]
[422354544,1778865039000,-162.16117544,0.00013698,2]
[422354547,1778865039000,-537.71298597,0.00013698,2]
[422354554,1778865039000,-500.0,0.00013698,2]
[422354563,1778865039000,-500.0,0.00013698,2]
[422354555,1778865039000,-500.0,0.00013698,2]
[422354556,1778865039000,-500.0,0.00013698,2]
[422354553,1778865039000,-500.0,0.00013698,2]
[422354559,1778865039000,-500.0,0.00013698,2]
[422354560,1778865039000,-508.37684919,0.00013698,2]
[422354561,1778865039000,-500.0,0.00013698,2]
[422354562,1778865039000,-500.0,0.00013698,2]
[422354564,1778865039000,-500.0,0.00013698,2]
[422354566,1778865039000,-500.0,0.00013698,2]
[422354565,1778865039000,-500.0,0.00013698,2]
[422354568,1778865039000,-500.0,0.00013698,2]
[422354543,1778865039000,-500.0,0.00013698,2]
[422354567,1778865039000,-500.0,0.00013698,2]
[422354557,1778865039000,-500.0,0.00013698,2]
[422354540,1778865039000,-500.0,0.00013698,2]
[422354521,1778865039000,-500.0,0.00013698,2]
[422354537,1778865039000,-500.0,0.00013698,2]
[422354569,1778865039000,-401.0210076,0.00013698,2]
[422354511,1778865039000,-32106.81918875,0.00013656,2]
[422354513,1778865039000,-150.0,0.00013675,2]
[422354512,1778865039000,-280.65180992,0.00013669,2]
[422354514,1778865039000,-150.0,0.00013675,2]
[422354515,1778865039000,-150.0,0.0001368,2]
[422354518,1778865039000,-208.38824723,0.00013696,2]
[422354516,1778865039000,-280.65180992,0.00013684,2]
[422354520,1778865039000,-500.0,0.00013698,2]
[422354517,1778865039000,-150.0,0.00013687,2]
[422354519,1778865039000,-508.43277661,0.00013698,2]
[422354522,1778865039000,-500.0,0.00013698,2]
[422354523,1778865039000,-500.0,0.00013698,2]
[422354524,1778865039000,-500.0,0.00013698,2]
[422354525,1778865039000,-500.0,0.00013698,2]
[422354526,1778865039000,-500.0,0.00013698,2]
[422354528,1778865039000,-505.50097699,0.00013698,2]
[422354527,1778865039000,-640.39212556,0.00013698,2]
[422354529,1778865039000,-500.0,0.00013698,2]
[422354530,1778865039000,-500.0,0.00013698,2]
[422354532,1778865039000,-500.0,0.00013698,2]
[422354533,1778865039000,-500.0,0.00013698,2]
[422354531,1778865039000,-500.0,0.00013698,2]
[422354534,1778865039000,-500.0,0.00013698,2]
[422354535,1778865039000,-500.0,0.00013698,2]
[422354538,1778865039000,-500.0,0.00013698,2]
[422354536,1778865039000,-500.0,0.00013698,2]
[422354539,1778865039000,-500.0,0.00013698,2]
[422354570,1778865039000,-500.0,0.00013698,2]
[422354585,1778865039000,-166.66,0.00013699,2]
[422354573,1778865039000,-500.0,0.00013698,2]
[422354605,1778865039000,-280.65180992,0.0001379,2]
[422354606,1778865039000,-150.0,0.00013795,2]
[422354607,1778865039000,-280.65180992,0.00013806,2]
[422354619,1778865039000,-150.0,0.00013862,2]
[422354609,1778865039000,-5176.83415148,0.00013811,2]
[422354613,1778865039000,-150.0,0.00013834,2]
[422354611,1778865039000,-280.65180992,0.00013821,2]
[422354608,1778865039000,-150.0,0.00013809,2]
[422354610,1778865039000,-32106.81918875,0.00013811,2]
[422354617,1778865039000,-280.65180992,0.00013851,2]
[422354612,1778865039000,-150.0,0.00013825,2]
[422354614,1778865039000,-166.66,0.00013836,2]
[422354618,1778865039000,-150.0,0.00013862,2]
[422354616,1778865039000,-150.0,0.00013837,2]
[422354620,1778865039000,-280.65180992,0.00013866,2]
[422354622,1778865039000,-150.0,0.00013872,2]
[422354625,1778865039000,-280.65180992,0.00013896,2]
[422354621,1778865039000,-500.0,0.00013871,2]
[422354626,1778865039000,-150.0,0.000139,2]
[422354624,1778865039000,-150.0,0.00013887,2]
[422354623,1778865039000,-280.65180992,0.00013881,2]
[422354627,1778865039000,-2549.93685383,0.000139,2]
[422354628,1778865039000,-150.0,0.0001391,2]
[422354629,1778865039000,-280.65180992,0.00013912,2]
[422354631,1778865039000,-280.65180992,0.00013927,2]
[422354571,1778865039000,-500.0,0.00013698,2]
[422354630,1778865039000,-150.0,0.00013916,2]
[422354600,1778865039000,-280.65180992,0.0001376,2]
[422354599,1778865039000,-150.0,0.00013757,2]
[422354615,1778865039000,-280.65180992,0.00013836,2]
[422354601,1778865039000,-150.0,0.00013769,2]
[422354583,1778865039000,-500.0,0.00013698,2]
[422354574,1778865039000,-500.0,0.00013698,2]
[422354596,1778865039000,-150.0,0.00013737,2]
[422354572,1778865039000,-500.0,0.00013698,2]
[422354576,1778865039000,-500.0,0.00013698,2]
[422354577,1778865039000,-500.0,0.00013698,2]
[422354581,1778865039000,-642.29736269,0.00013698,2]
[422354578,1778865039000,-500.0,0.00013698,2]
[422354575,1778865039000,-500.0,0.00013698,2]
[422354580,1778865039000,-500.0,0.00013698,2]
[422354582,1778865039000,-500.0,0.00013698,2]
[422354584,1778865039000,-500.0,0.00013698,2]
[422354594,1778865039000,-150.0,0.00013718,2]
[422354586,1778865039000,-200.0,0.00013699,2]
[422354579,1778865039000,-500.0,0.00013698,2]
[422354603,1778865039000,-150.0,0.00013787,2]
[422354602,1778865039000,-280.65180992,0.00013775,2]
[422354604,1778865039000,-150.0,0.00013787,2]
[422354587,1778865039000,-280.65180992,0.000137,2]
[422354597,1778865039000,-280.65180992,0.00013745,2]
[422354598,1778865039000,-150.0,0.0001375,2]
[422354595,1778865039000,-280.65180992,0.0001373,2]
[422354592,1778865039000,-150.0,0.00013712,2]
[422354589,1778865039000,-150.0,0.00013702,2]
[422354588,1778865039000,-2549.93685383,0.000137,2]
[422354590,1778865039000,-894.58051,0.0001371,2]
[422354591,1778865039000,-531.207059,0.0001371,2]
[422354593,1778865039000,-280.65180992,0.00013715,2]
[422354673,1778865040000,-150.0,0.00014125,2]
[422354675,1778865040000,-150.0,0.00014137,2]
[422354683,1778865040000,-150.0,0.00014179,2]
[422354676,1778865040000,-280.65180992,0.00014139,2]
[422354669,1778865040000,-166.66,0.0001411,2]
[422354664,1778865040000,-150.0,0.00014087,2]
[422354668,1778865040000,-280.65180992,0.00014108,2]
[422354671,1778865040000,-32106.81918875,0.00014122,2]
[422354662,1778865040000,-280.65180992,0.00014078,2]
[422354674,1778865040000,-150.0,0.0001413,2]
[422354663,1778865040000,-150.0,0.00014087,2]
[422354666,1778865040000,-2549.93685383,0.000141,2]
[422354672,1778865040000,-280.65180992,0.00014123,2]
[422354694,1778865040000,-500.0,0.00014217,2]
[422354679,1778865040000,-500.0,0.00014145,2]
[422354682,1778865040000,-280.65180992,0.00014169,2]
[422354678,1778865040000,-150.0,0.00014143,2]
[422354681,1778865040000,-150.0,0.00014162,2]
[422354677,1778865040000,-150.0,0.00014141,2]
[422354680,1778865040000,-280.65180992,0.00014154,2]
[422354685,1778865040000,-150.0,0.00014187,2]
[422354691,1778865040000,-500.0,0.00014217,2]
[422354688,1778865040000,-649.50098704,0.000142,2]
[422354687,1778865040000,-150.0,0.000142,2]
[422354686,1778865040000,-280.65180992,0.00014199,2]
[422354695,1778865040000,-500.0,0.00014217,2]
[422354670,1778865040000,-5176.83415148,0.00014122,2]
[422354684,1778865040000,-280.65180992,0.00014184,2]
[422354660,1778865040000,-280.65180992,0.00014063,2]
[422354632,1778865040000,-150.0,0.00013937,2]
[422354665,1778865040000,-280.65180992,0.00014093,2]
[422354696,1778865040000,-500.0,0.00014217,2]
[422354633,1778865040000,-150.0,0.00013937,2]
[422354644,1778865040000,-150.0,0.00013987,2]
[422354637,1778865040000,-280.65180992,0.00013957,2]
[422354645,1778865040000,-150.0,0.00013987,2]
[422354635,1778865040000,-150.0,0.00013949,2]
[422354634,1778865040000,-280.65180992,0.00013942,2]
[422354638,1778865040000,-5176.83415148,0.00013967,2]
[422354636,1778865040000,-150.0,0.00013956,2]
[422354639,1778865040000,-32106.81918875,0.00013967,2]
[422354641,1778865040000,-166.66,0.00013973,2]
[422354640,1778865040000,-280.65180992,0.00013972,2]
[422354642,1778865040000,-150.0,0.00013975,2]
[422354643,1778865040000,-518.48,0.00013986,2]
[422354646,1778865040000,-280.65180992,0.00013987,2]
[422354648,1778865040000,-280.65180992,0.00014002,2]
[422354658,1778865040000,-150.0,0.0001405,2]
[422354653,1778865040000,-150.0,0.00014026,2]
[422354654,1778865040000,-166.35,0.00014028,2]
[422354650,1778865040000,-280.65180992,0.00014017,2]
[422354652,1778865040000,-150.0,0.00014023,2]
[422354651,1778865040000,-150.0,0.00014021,2]
[422354647,1778865040000,-2730.1767011,0.0001399,2]
[422354649,1778865040000,-150.0,0.00014012,2]
[422354656,1778865040000,-150.0,0.00014037,2]
[422354657,1778865040000,-280.65180992,0.00014048,2]
[422354655,1778865040000,-280.65180992,0.00014033,2]
[422354659,1778865040000,-150.0,0.0001405,2]
[422354661,1778865040000,-150.0,0.00014064,2]
[422354667,1778865040000,-150.0,0.00014102,2]
[422354689,1778865040000,-280.65180992,0.00014214,2]
[422354690,1778865040000,-500.0,0.00014217,2]
[422354692,1778865040000,-500.0,0.00014217,2]
[422354727,1778865040000,-150.0,0.00014333,2]
[422354729,1778865040000,-150.0,0.00014337,2]
[422354731,1778865040000,-150.0,0.00014349,2]
[422354726,1778865040000,-150.0,0.00014331,2]
[422354730,1778865040000,-150.0,0.00014344,2]
[422354738,1778865040000,-150.0,0.00014387,2]
[422354736,1778865040000,-280.65180992,0.00014381,2]
[422354739,1778865040000,-150.0,0.00014387,2]
[422354740,1778865040000,-10449.59981307,0.0001439,2]
[422354747,1778865040000,-280.65180992,0.00014426,2]
[422354743,1778865040000,-280.65180992,0.00014411,2]
[422354746,1778865040000,-150.0,0.00014424,2]
[422354744,1778865040000,-500.0,0.00014419,2]
[422354742,1778865040000,-150.0,0.0001441,2]
[422354748,1778865040000,-5176.83415148,0.00014433,2]
[422354737,1778865040000,-166.66,0.00014384,2]
[422354741,1778865040000,-280.65180992,0.00014396,2]
[422354745,1778865040000,-150.0,0.00014424,2]
[422354749,1778865040000,-150.0,0.00014437,2]
[422354758,1778865040000,-150.0,0.00014487,2]
[422354750,1778865040000,-280.65180992,0.00014441,2]
[422354753,1778865040000,-150.0,0.00014451,2]
[422354751,1778865040000,-150.0,0.00014448,2]
[422354752,1778865040000,-500.0,0.0001445,2]
[422354754,1778865040000,-280.65180992,0.00014456,2]
[422354756,1778865040000,-280.65180992,0.00014472,2]
[422354755,1778865040000,-150.0,0.00014462,2]
[422354757,1778865040000,-150.0,0.00014487,2]
[422354693,1778865040000,-500.0,0.00014217,2]
[422354724,1778865040000,-150.0,0.00014312,2]
[422354722,1778865040000,-2549.93685383,0.000143,2]
[422354697,1778865040000,-500.0,0.00014217,2]
[422354725,1778865040000,-280.65180992,0.0001432,2]
[422354728,1778865040000,-280.65180992,0.00014335,2]
[422354698,1778865040000,-500.0,0.00014217,2]
[422354708,1778865040000,-166.66,0.00014247,2]
[422354709,1778865040000,-150.0,0.00014256,2]
[422354700,1778865040000,-500.0,0.00014217,2]
[422354701,1778865040000,-150.0,0.00014218,2]
[422354705,1778865040000,-150.0,0.00014237,2]
[422354702,1778865040000,-280.65180992,0.00014229,2]
[422354707,1778865040000,-280.65180992,0.00014245,2]
[422354704,1778865040000,-150.0,0.00014237,2]
[422354703,1778865040000,-150.0,0.00014237,2]
[422354706,1778865040000,-150.0,0.00014237,2]
[422354714,1778865040000,-5176.83415148,0.00014278,2]
[422354712,1778865040000,-150.0,0.00014274,2]
[422354699,1778865040000,-500.0,0.00014217,2]
[422354711,1778865040000,-214.997284,0.0001427,2]
[422354733,1778865040000,-280.65180992,0.00014366,2]
[422354732,1778865040000,-280.65180992,0.00014351,2]
[422354735,1778865040000,-150.0,0.00014371,2]
[422354734,1778865040000,-156.6761228,0.00014371,2]
[422354723,1778865040000,-280.65180992,0.00014305,2]
[422354713,1778865040000,-280.65180992,0.00014275,2]
[422354721,1778865040000,-307.26,0.000143,2]
[422354718,1778865040000,-280.65180992,0.0001429,2]
[422354720,1778865040000,-150.0,0.00014295,2]
[422354717,1778865040000,-150.0,0.00014287,2]
[422354716,1778865040000,-222.38,0.0001428,2]
[422354715,1778865040000,-32106.81918875,0.00014278,2]
[422354710,1778865040000,-280.65180992,0.0001426,2]
[422354719,1778865040000,-247.4,0.00014293,2]
[422354801,1778865041000,-280.65180992,0.00014668,2]
[422354799,1778865041000,-1489.0,0.00014658,2]
[422354797,1778865041000,-150.0,0.00014649,2]
[422354793,1778865041000,-280.65180992,0.00014623,2]
[422354792,1778865041000,-150.0,0.00014612,2]
[422354790,1778865041000,-280.65180992,0.00014608,2]
[422354791,1778865041000,-150.0,0.00014612,2]
[422354800,1778865041000,-150.0,0.00014665,2]
[422354789,1778865041000,-150.0,0.00014602,2]
[422354795,1778865041000,-280.65180992,0.00014638,2]
[422354802,1778865041000,-150.0,0.00014679,2]
[422354810,1778865041000,-2549.93685383,0.000147,2]
[422354803,1778865041000,-280.65180992,0.00014684,2]
[422354805,1778865041000,-150.0,0.00014687,2]
[422354807,1778865041000,-191.02515746,0.00014699,2]
[422354804,1778865041000,-150.0,0.00014687,2]
[422354808,1778865041000,-500.0,0.00014699,2]
[422354809,1778865041000,-2499.991,0.000147,2]
[422354812,1778865041000,-210.0,0.00014711,2]
[422354819,1778865041000,-150.0,0.00014737,2]
[422354811,1778865041000,-150.0,0.00014705,2]
[422354820,1778865041000,-280.65180992,0.00014744,2]
[422354813,1778865041000,-280.65180992,0.00014714,2]
[422354794,1778865041000,-150.0,0.00014637,2]
[422354815,1778865041000,-150.0,0.00014717,2]
[422354806,1778865041000,-280.65180992,0.00014699,2]
[422354788,1778865041000,-2000.0,0.000146,2]
[422354784,1778865041000,-280.65180992,0.00014578,2]
[422354787,1778865041000,-280.65180992,0.00014593,2]
[422354761,1778865041000,-2549.93685383,0.000145,2]
[422354760,1778865041000,-150.0,0.00014499,2]
[422354759,1778865041000,-280.65180992,0.00014487,2]
[422354762,1778865041000,-280.65180992,0.00014502,2]
[422354763,1778865041000,-2500.0,0.00014507,2]
[422354764,1778865041000,-2500.0,0.00014507,2]
[422354767,1778865041000,-1591.06853243,0.00014507,2]
[422354769,1778865041000,-300.0,0.00014507,2]
[422354765,1778865041000,-2500.0,0.00014507,2]
[422354768,1778865041000,-300.0,0.00014507,2]
[422354770,1778865041000,-300.0,0.00014507,2]
[422354766,1778865041000,-2500.0,0.00014507,2]
[422354771,1778865041000,-300.0,0.00014507,2]
[422354772,1778865041000,-300.0,0.00014507,2]
[422354774,1778865041000,-150.0,0.00014518,2]
[422354818,1778865041000,-500.0,0.00014733,2]
[422354775,1778865041000,-150.0,0.00014525,2]
[422354776,1778865041000,-280.65180992,0.00014532,2]
[422354773,1778865041000,-280.65180992,0.00014517,2]
[422354777,1778865041000,-150.0,0.00014537,2]
[422354779,1778865041000,-280.65180992,0.00014547,2]
[422354783,1778865041000,-150.0,0.00014574,2]
[422354782,1778865041000,-150.0,0.00014564,2]
[422354781,1778865041000,-280.65180992,0.00014562,2]
[422354780,1778865041000,-150.0,0.00014558,2]
[422354786,1778865041000,-5176.83415148,0.00014589,2]
[422354796,1778865041000,-150.0,0.0001464,2]
[422354785,1778865041000,-150.0,0.00014587,2]
[422354816,1778865041000,-150.0,0.00014724,2]
[422354778,1778865041000,-150.0,0.00014537,2]
[422354821,1778865041000,-5176.83415148,0.00014744,2]
[422354857,1778865041000,-500.0,0.00014749,2]
[422354861,1778865041000,-500.0,0.00014749,2]
[422354873,1778865041000,-150.0,0.00014762,2]
[422354875,1778865041000,-150.0,0.00014772,2]
[422354878,1778865041000,-280.65180992,0.00014774,2]
[422354892,1778865041000,-500.0,0.00014799,2]
[422354882,1778865041000,-500.0,0.00014789,2]
[422354880,1778865041000,-150.0,0.00014786,2]
[422354894,1778865041000,-500.0,0.00014799,2]
[422354898,1778865041000,-500.0,0.00014799,2]
[422354888,1778865041000,-150.0,0.00014799,2]
[422354884,1778865041000,-280.65180992,0.0001479,2]
[422354890,1778865041000,-150.0,0.00014799,2]
[422354886,1778865041000,-150.0,0.00014794,2]
[422354896,1778865041000,-500.0,0.00014799,2]
[422354900,1778865041000,-500.0,0.00014799,2]
[422354902,1778865041000,-500.0,0.00014799,2]
[422354904,1778865041000,-500.0,0.00014799,2]
[422354915,1778865041000,-500.0,0.00014799,2]
[422354910,1778865041000,-500.0,0.00014799,2]
[422354908,1778865041000,-500.0,0.00014799,2]
[422354913,1778865041000,-500.0,0.00014799,2]
[422354906,1778865041000,-500.0,0.00014799,2]
[422354917,1778865041000,-408.82,0.00014799,2]
[422354919,1778865041000,-280.65180992,0.00014805,2]
[422354921,1778865041000,-280.65180992,0.0001482,2]
[422354817,1778865041000,-280.65180992,0.00014729,2]
[422354865,1778865041000,-500.0,0.00014749,2]
[422354859,1778865041000,-500.0,0.00014749,2]
[422354798,1778865041000,-280.65180992,0.00014653,2]
[422354867,1778865041000,-500.0,0.00014749,2]
[422354855,1778865041000,-500.0,0.00014749,2]
[422354830,1778865041000,-503.8532288,0.00014749,2]
[422354823,1778865041000,-478.0,0.00014749,2]
[422354829,1778865041000,-500.0,0.00014749,2]
[422354832,1778865041000,-500.0,0.00014749,2]
[422354824,1778865041000,-500.0,0.00014749,2]
[422354828,1778865041000,-500.0,0.00014749,2]
[422354825,1778865041000,-608.0,0.00014749,2]
[422354826,1778865041000,-500.0,0.00014749,2]
[422354827,1778865041000,-500.0,0.00014749,2]
[422354833,1778865041000,-500.0,0.00014749,2]
[422354835,1778865041000,-500.0,0.00014749,2]
[422354834,1778865041000,-500.0,0.00014749,2]
[422354831,1778865041000,-500.0,0.00014749,2]
[422354845,1778865041000,-500.0,0.00014749,2]
[422354871,1778865041000,-280.65180992,0.00014759,2]
[422354837,1778865041000,-500.0,0.00014749,2]
[422354869,1778865041000,-150.0,0.00014756,2]
[422354863,1778865041000,-500.0,0.00014749,2]
[422354853,1778865041000,-500.0,0.00014749,2]
[422354851,1778865041000,-500.0,0.00014749,2]
[422354822,1778865041000,-500.0,0.00014749,2]
[422354836,1778865041000,-500.0,0.00014749,2]
[422354839,1778865041000,-500.0,0.00014749,2]
[422354841,1778865041000,-500.0,0.00014749,2]
[422354838,1778865041000,-500.0,0.00014749,2]
[422354843,1778865041000,-500.0,0.00014749,2]
[422354849,1778865041000,-500.0,0.00014749,2]
[422354847,1778865041000,-500.0,0.00014749,2]
[422354987,1778865042000,-500.0,0.00014999,2]
[422354959,1778865042000,-150.0,0.00014948,2]
[422354960,1778865042000,-150.0,0.00014949,2]
[422354958,1778865042000,-280.65180992,0.00014941,2]
[422354953,1778865042000,-150.0,0.00014909,2]
[422354961,1778865042000,-280.65180992,0.00014956,2]
[422354963,1778865042000,-150.0,0.00014986,2]
[422354965,1778865042000,-150.0,0.00014986,2]
[422354970,1778865042000,-770.51771859,0.0001499,2]